[Event "Live Chess"]
[Site "Chess.com"]
[Date "2024.06.02"]
[Round "-"]
[White "Andriy_Yaremovych"]
[Black "Dhaydon19"]
[Result "0-1"]
[WhiteElo "1590"]
[BlackElo "2638"]
[TimeControl "300"]
[EndTime "4:01:03 PDT"]
[Termination "Dhaydon19 won by resignation"]

1. e4 {[%clk 0:04:58.2]} 1... e6 {[%clk 0:04:59.1]} 2. Nc3 {[%clk 0:04:58.1]}
2... d5 {[%clk 0:04:58.6]} 3. exd5 {[%clk 0:04:57.2]} 3... exd5 {[%clk
0:04:57.8]} 4. d4 {[%clk 0:04:57.1]} 4... Nf6 {[%clk 0:04:55.9]} 5. f4 {[%clk
0:04:57]} 5... Be7 {[%clk 0:04:55.6]} 6. Nf3 {[%clk 0:04:56.8]} 6... O-O {[%clk
0:04:55.3]} 7. Bd3 {[%clk 0:04:56.3]} 7... c6 {[%clk 0:04:55]} 8. O-O {[%clk
0:04:56.2]} 8... Re8 {[%clk 0:04:53.6]} 9. Ne2 {[%clk 0:04:55.6]} 9... Nbd7
{[%clk 0:04:53]} 10. c3 {[%clk 0:04:54.8]} 10... Nf8 {[%clk 0:04:52.7]} 11. Bc2
{[%clk 0:04:54.1]} 11... Bd6 {[%clk 0:04:52.1]} 12. Ng3 {[%clk 0:04:52.9]} 12...
Bg4 {[%clk 0:04:47.3]} 13. h3 {[%clk 0:04:50.7]} 13... Bxf3 {[%clk 0:04:43.1]}
14. Rxf3 {[%clk 0:04:50.6]} 14... Ng6 {[%clk 0:04:40.7]} 15. Qd3 {[%clk
0:04:47.2]} 15... Ne4 {[%clk 0:04:39.1]} 16. Nf5 {[%clk 0:04:45.1]} 16... Bc7
{[%clk 0:04:35.9]} 17. Bd2 {[%clk 0:04:39.9]} 17... Qf6 {[%clk 0:04:31.6]} 18.
Ng3 {[%clk 0:04:35.7]} 18... Nxd2 {[%clk 0:04:25.3]} 19. Qxd2 {[%clk 0:04:31.2]}
19... Bxf4 {[%clk 0:04:19.1]} 20. Qf2 {[%clk 0:04:27.9]} 20... Bxg3 {[%clk
0:04:13.3]} 21. Qxg3 {[%clk 0:04:24.1]} 21... Qe7 {[%clk 0:04:11.3]} 22. Bxg6
{[%clk 0:04:22.6]} 22... fxg6 {[%clk 0:04:05.7]} 23. Raf1 {[%clk 0:04:21]} 23...
a6 {[%clk 0:04:00.4]} 24. a3 {[%clk 0:04:19.3]} 24... g5 {[%clk 0:03:55.9]} 25.
Rf5 {[%clk 0:04:16.7]} 25... h6 {[%clk 0:03:53]} 26. Re5 {[%clk 0:04:15]} 26...
Qd7 {[%clk 0:03:52.2]} 27. Qd3 {[%clk 0:04:11.5]} 27... Rxe5 {[%clk 0:03:50.8]}
28. dxe5 {[%clk 0:04:10.8]} 28... Re8 {[%clk 0:03:50.3]} 29. Re1 {[%clk
0:04:09.5]} 29... Qe6 {[%clk 0:03:41.2]} 30. b4 {[%clk 0:04:03.6]} 30... Rf8
{[%clk 0:03:37.9]} 31. Qd4 {[%clk 0:03:56]} 31... Rf7 {[%clk 0:03:35.4]} 32. Qa7
{[%clk 0:03:52.3]} 32... Kh7 {[%clk 0:03:33.1]} 33. Qd4 {[%clk 0:03:50.1]} 33...
Re7 {[%clk 0:03:30.5]} 34. g4 {[%clk 0:03:46.9]} 34... Rf7 {[%clk 0:03:28.7]}
35. Kg2 {[%clk 0:03:45.2]} 35... Rf4 {[%clk 0:03:26.1]} 36. Qd3+ {[%clk
0:03:44.1]} 36... g6 {[%clk 0:03:25.3]} 37. Re3 {[%clk 0:03:41.4]} 37... Kg7
{[%clk 0:03:18.7]} 38. a4 {[%clk 0:03:37.9]} 38... Kf7 {[%clk 0:03:15.6]} 39.
Rf3 {[%clk 0:03:36.2]} 39... Qxe5 {[%clk 0:03:12.2]} 40. Rxf4+ {[%clk
0:03:35.2]} 40... gxf4 {[%clk 0:03:10]} 41. Kf3 {[%clk 0:03:32.1]} 41... Kf6
{[%clk 0:03:09]} 42. h4 {[%clk 0:03:30.3]} 42... g5 {[%clk 0:03:06.4]} 43. hxg5+
{[%clk 0:03:26.9]} 43... hxg5 {[%clk 0:03:05.3]} 44. Qh7 {[%clk 0:03:25.7]}
44... Qe3+ {[%clk 0:03:02.5]} 45. Kg2 {[%clk 0:03:24.8]} 45... Qe4+ {[%clk
0:03:02]} 46. Kf2 {[%clk 0:03:23.2]} 46... Qxh7 {[%clk 0:02:59.6]} 0-1

[Event "Live Chess"]
[Site "Chess.com"]
[Date "2024.06.02"]
[Round "-"]
[White "WeakOldFinished"]
[Black "sebmoran1"]
[Result "1-0"]
[WhiteElo "2178"]
[BlackElo "1412"]
[TimeControl "300"]
[EndTime "4:01:14 PDT"]
[Termination "WeakOldFinished won by resignation"]

1. e4 {[%clk 0:04:56.9]} 1... c5 {[%clk 0:04:58.1]} 2. d4 {[%clk 0:04:55.8]}
2... cxd4 {[%clk 0:04:57]} 3. c3 {[%clk 0:04:54.9]} 3... dxc3 {[%clk 0:04:56.9]}
4. Nxc3 {[%clk 0:04:54]} 4... Nf6 {[%clk 0:04:56.3]} 5. Bc4 {[%clk 0:04:49.7]}
5... d6 {[%clk 0:04:55.5]} 6. e5 {[%clk 0:04:46.2]} 6... dxe5 {[%clk 0:04:53.9]}
7. Bxf7+ {[%clk 0:04:45.1]} 7... Kxf7 {[%clk 0:04:45.1]} 8. Qxd8 {[%clk
0:04:43.4]} 8... Bh3 {[%clk 0:04:41.9]} 9. Nxh3 {[%clk 0:04:40.3]} 9... Nc6
{[%clk 0:04:41.4]} 10. Ng5+ {[%clk 0:04:37.8]} 10... Kg6 {[%clk 0:04:38.4]} 11.
Qc7 {[%clk 0:04:32.2]} 1-0

[Event "Live Chess"]
[Site "Chess.com"]
[Date "2024.06.02"]
[Round "-"]
[White "upoe610"]
[Black "Ferrarifan27"]
[Result "0-1"]
[WhiteElo "2124"]
[BlackElo "2156"]
[TimeControl "300"]
[EndTime "4:01:39 PDT"]
[Termination "Ferrarifan27 won by resignation"]

1. c4 {[%clk 0:04:58.5]} 1... Nf6 {[%clk 0:04:35.7]} 2. g3 {[%clk 0:04:57]} 2...
e6 {[%clk 0:04:33.9]} 3. Bg2 {[%clk 0:04:55.5]} 3... d5 {[%clk 0:04:33.6]} 4.
Nf3 {[%clk 0:04:53.5]} 4... Be7 {[%clk 0:04:30.5]} 5. O-O {[%clk 0:04:49.4]}
5... O-O {[%clk 0:04:27.5]} 6. d4 {[%clk 0:04:48.3]} 6... dxc4 {[%clk
0:04:22.8]} 7. Qc2 {[%clk 0:04:46.8]} 7... Bd7 {[%clk 0:04:21.3]} 8. Bg5 {[%clk
0:04:37.1]} 8... Bc6 {[%clk 0:04:17.2]} 9. Qxc4 {[%clk 0:04:35.8]} 9... h6
{[%clk 0:04:15]} 10. Bxf6 {[%clk 0:04:33.4]} 10... Bxf6 {[%clk 0:04:13.9]} 11.
Nbd2 {[%clk 0:04:32.6]} 11... Nd7 {[%clk 0:04:11.2]} 12. Rac1 {[%clk 0:04:30.9]}
12... Nb6 {[%clk 0:04:10.1]} 13. Qc3 {[%clk 0:04:26.7]} 13... Qe7 {[%clk
0:04:03.6]} 14. e4 {[%clk 0:04:24.8]} 14... Rad8 {[%clk 0:03:56.7]} 15. e5
{[%clk 0:04:24]} 15... Bg5 {[%clk 0:03:55.2]} 16. Rcd1 {[%clk 0:04:18.5]} 16...
Nd5 {[%clk 0:03:50.8]} 17. Qc2 {[%clk 0:04:13.4]} 17... Nb4 {[%clk 0:03:47]} 18.
Qc4 {[%clk 0:04:11.9]} 18... Bd5 {[%clk 0:03:41.5]} 19. Qe2 {[%clk 0:04:08.5]}
19... Bxd2 {[%clk 0:03:35.3]} 20. Rxd2 {[%clk 0:04:00.2]} 20... Bxa2 {[%clk
0:03:31.7]} 21. b3 {[%clk 0:03:48.2]} 21... Bxb3 {[%clk 0:03:29.7]} 22. Rb2
{[%clk 0:03:47.1]} 22... Bd5 {[%clk 0:03:28.5]} 23. Rfb1 {[%clk 0:03:45.4]}
23... a5 {[%clk 0:03:23.6]} 24. Qe3 {[%clk 0:03:38.8]} 24... b6 {[%clk
0:03:20.6]} 25. Bf1 {[%clk 0:03:37]} 25... Bxf3 {[%clk 0:03:12.3]} 26. Qxf3
{[%clk 0:03:35.7]} 26... Rxd4 {[%clk 0:03:11.4]} 27. Qe3 {[%clk 0:03:31.4]}
27... Rfd8 {[%clk 0:03:08.6]} 28. Rc1 {[%clk 0:03:29.4]} 28... c5 {[%clk
0:03:04.4]} 29. Kg2 {[%clk 0:03:24]} 29... Qb7+ {[%clk 0:03:01.7]} 30. f3 {[%clk
0:03:21.7]} 30... Qd5 {[%clk 0:02:59.2]} 31. Kh3 {[%clk 0:03:20.7]} 31... Rd2
{[%clk 0:02:54.5]} 32. Rbb1 {[%clk 0:03:11.8]} 32... Qd4 {[%clk 0:02:50.3]} 33.
Qe1 {[%clk 0:03:06.6]} 0-1

[Event "Live Chess"]
[Site "Chess.com"]
[Date "2024.06.02"]
[Round "-"]
[White "defenderalist"]
[Black "wadsy27"]
[Result "0-1"]
[WhiteElo "1527"]
[BlackElo "2593"]
[TimeControl "300"]
[EndTime "4:01:42 PDT"]
[Termination "wadsy27 won by resignation"]

1. e4 {[%clk 0:04:59.1]} 1... c5 {[%clk 0:04:58.3]} 2. f4 {[%clk 0:04:58]} 2...
d5 {[%clk 0:04:56.6]} 3. exd5 {[%clk 0:04:57]} 3... Qxd5 {[%clk 0:04:56.5]} 4.
Nf3 {[%clk 0:04:56.5]} 4... Nc6 {[%clk 0:04:55.2]} 5. Nc3 {[%clk 0:04:53.6]}
5... Qd8 {[%clk 0:04:53.9]} 6. Bc4 {[%clk 0:04:52.3]} 6... Nf6 {[%clk
0:04:52.7]} 7. Ng5 {[%clk 0:04:47.6]} 7... e6 {[%clk 0:04:51.8]} 8. O-O {[%clk
0:04:42.7]} 8... Be7 {[%clk 0:04:49.1]} 9. f5 {[%clk 0:04:41.7]} 9... Qd4+
{[%clk 0:04:44.2]} 10. Kh1 {[%clk 0:04:34.6]} 10... Qxc4 {[%clk 0:04:40.6]} 11.
fxe6 {[%clk 0:04:28.1]} 11... Bxe6 {[%clk 0:04:40.5]} 12. Nxe6 {[%clk
0:04:23.9]} 12... Qxe6 {[%clk 0:04:38.7]} 13. d4 {[%clk 0:04:20.9]} 13... cxd4
{[%clk 0:04:34.2]} 14. Nb5 {[%clk 0:04:18.9]} 14... Qd7 {[%clk 0:04:28.7]} 15.
Bf4 {[%clk 0:04:15.1]} 15... O-O {[%clk 0:04:26.8]} 16. Nc7 {[%clk 0:04:01.7]}
16... Rac8 {[%clk 0:04:25.1]} 17. Nb5 {[%clk 0:03:58.4]} 17... a6 {[%clk
0:04:23.7]} 0-1

[Event "Live Chess"]
[Site "Chess.com"]
[Date "2024.06.02"]
[Round "-"]
[White "Korchnoi987"]
[Black "Duke_of_Bebington"]
[Result "1-0"]
[WhiteElo "831"]
[BlackElo "1639"]
[TimeControl "300"]
[EndTime "4:01:56 PDT"]
[Termination "Korchnoi987 won by resignation"]

1. d4 {[%clk 0:04:56.6]} 1... d5 {[%clk 0:04:58.8]} 2. Bf4 {[%clk 0:04:55.1]}
2... Nf6 {[%clk 0:04:55]} 3. e3 {[%clk 0:04:54.3]} 3... Bf5 {[%clk 0:04:51.3]}
4. c3 {[%clk 0:04:53]} 4... e6 {[%clk 0:04:50.5]} 5. Bd3 {[%clk 0:04:51.4]} 5...
Bxd3 {[%clk 0:04:48.3]} 6. Qxd3 {[%clk 0:04:49.9]} 6... c5 {[%clk 0:04:48]} 7.
Nd2 {[%clk 0:04:39.6]} 7... Nc6 {[%clk 0:04:36.6]} 8. Ngf3 {[%clk 0:04:18.7]}
8... cxd4 {[%clk 0:04:23.1]} 9. cxd4 {[%clk 0:04:13.2]} 9... Bb4 {[%clk
0:04:05.6]} 10. O-O {[%clk 0:03:58.2]} 10... O-O {[%clk 0:04:04.1]} 11. a3
{[%clk 0:03:51.8]} 11... Bd6 {[%clk 0:03:57.5]} 12. Bxd6 {[%clk 0:03:44.5]}
12... Qxd6 {[%clk 0:03:55.2]} 13. Ne5 {[%clk 0:03:31]} 13... Nxe5 {[%clk
0:03:52.9]} 14. dxe5 {[%clk 0:03:29.9]} 14... Qxe5 {[%clk 0:03:52.2]} 15. Nf3
{[%clk 0:03:29.1]} 15... Qe4 {[%clk 0:03:39.5]} 16. Qb5 {[%clk 0:03:22.9]} 16...
a6 {[%clk 0:03:18.3]} 17. Qb6 {[%clk 0:03:12.6]} 17... Rfc8 {[%clk 0:03:05.8]}
18. Qxb7 {[%clk 0:02:46.3]} 18... Rcb8 {[%clk 0:03:01.3]} 19. Qc6 {[%clk
0:02:44.8]} 19... Rc8 {[%clk 0:03:00.3]} 20. Qb6 {[%clk 0:02:42.6]} 20... Nd7
{[%clk 0:02:49.5]} 21. Qb4 {[%clk 0:02:36.2]} 21... Qxb4 {[%clk 0:02:47.4]} 22.
axb4 {[%clk 0:02:34.3]} 22... Nb6 {[%clk 0:02:39.1]} 23. Rfc1 {[%clk 0:02:32.2]}
23... Kf8 {[%clk 0:02:26]} 24. g3 {[%clk 0:02:29.8]} 24... Ke7 {[%clk 0:02:24]}
25. Ne5 {[%clk 0:02:23.5]} 25... f6 {[%clk 0:02:12.8]} 26. Nd3 {[%clk
0:02:22.2]} 26... Rxc1+ {[%clk 0:01:49.2]} 27. Rxc1 {[%clk 0:02:20.3]} 27... Kd6
{[%clk 0:01:42.5]} 28. Nc5 {[%clk 0:02:13.6]} 28... Nd7 {[%clk 0:01:41]} 29.
Nxd7 {[%clk 0:02:02.3]} 29... Kxd7 {[%clk 0:01:39.8]} 30. Ra1 {[%clk 0:02:01]}
30... Kc6 {[%clk 0:01:35.3]} 31. Kf1 {[%clk 0:02:00.9]} 31... Kb5 {[%clk
0:01:34]} 32. Rc1 {[%clk 0:01:56.8]} 32... Ra7 {[%clk 0:01:30.4]} 33. Rc5+
{[%clk 0:01:47.8]} 33... Kxb4 {[%clk 0:01:28.8]} 34. Rc6 {[%clk 0:01:44.9]}
34... e5 {[%clk 0:01:25.2]} 35. Ke2 {[%clk 0:01:39.5]} 35... Kb5 {[%clk
0:01:21.4]} 36. Rc2 {[%clk 0:01:35.2]} 36... Kb4 {[%clk 0:01:14.2]} 37. Kd2
{[%clk 0:01:33.5]} 37... Kb3 {[%clk 0:01:11]} 38. Rc5 {[%clk 0:01:30.4]} 38...
Rd7 {[%clk 0:01:06.3]} 39. Rc6 {[%clk 0:01:27.4]} 39... Kxb2 {[%clk 0:01:01.5]}
40. Rxa6 {[%clk 0:01:25.4]} 40... d4 {[%clk 0:01:00.9]} 41. exd4 {[%clk
0:01:22]} 41... Rxd4+ {[%clk 0:00:59.1]} 42. Ke3 {[%clk 0:01:20.7]} 42... Rd7
{[%clk 0:00:56]} 43. Rc6 {[%clk 0:01:18]} 43... Kb3 {[%clk 0:00:54.6]} 44. f4
{[%clk 0:01:16.4]} 44... exf4+ {[%clk 0:00:52]} 45. gxf4 {[%clk 0:01:13.6]}
45... Kb4 {[%clk 0:00:50.4]} 46. Rc8 {[%clk 0:01:10]} 46... Kb5 {[%clk 0:00:49]}
47. h4 {[%clk 0:01:08.6]} 47... h6 {[%clk 0:00:47.8]} 48. Ke4 {[%clk 0:01:06.1]}
48... Kb6 {[%clk 0:00:38.3]} 49. Kf5 {[%clk 0:01:04.9]} 49... Kb7 {[%clk
0:00:36.7]} 50. Rc5 {[%clk 0:01:02.2]} 50... Kb6 {[%clk 0:00:32.5]} 51. Rc4
{[%clk 0:01:01.1]} 51... Kb5 {[%clk 0:00:31.5]} 52. Re4 {[%clk 0:00:59.3]} 52...
Rf7 {[%clk 0:00:29.8]} 53. Kg6 {[%clk 0:00:57.9]} 53... Rc7 {[%clk 0:00:28.6]}
54. f5 {[%clk 0:00:56.5]} 54... Kc6 {[%clk 0:00:27.5]} 55. Rc4+ {[%clk
0:00:53.2]} 55... Kd7 {[%clk 0:00:26.2]} 56. Rxc7+ {[%clk 0:00:51.3]} 56... Kxc7
{[%clk 0:00:26.1]} 57. Kxg7 {[%clk 0:00:50.2]} 57... Kd6 {[%clk 0:00:26]} 58.
Kxh6 {[%clk 0:00:49.3]} 58... Ke5 {[%clk 0:00:25.1]} 59. Kg6 {[%clk 0:00:48.6]}
59... Kf4 {[%clk 0:00:23.6]} 60. h5 {[%clk 0:00:48]} 60... Kg4 {[%clk
0:00:23.4]} 61. h6 {[%clk 0:00:47.3]} 1-0

[Event "Live Chess"]
[Site "Chess.com"]
[Date "2024.06.02"]
[Round "-"]
[White "asingardenof"]
[Black "elis06"]
[Result "0-1"]
[WhiteElo "621"]
[BlackElo "2349"]
[TimeControl "300"]
[EndTime "4:02:13 PDT"]
[Termination "elis06 won by checkmate"]

1. e4 {[%clk 0:04:56.2]} 1... c6 {[%clk 0:04:59.2]} 2. Nc3 {[%clk 0:04:56.1]}
2... d5 {[%clk 0:04:58.5]} 3. Nf3 {[%clk 0:04:54.1]} 3... dxe4 {[%clk
0:04:57.8]} 4. Nxe4 {[%clk 0:04:54]} 4... Nd7 {[%clk 0:04:57.1]} 5. Bc4 {[%clk
0:04:49.8]} 5... Ngf6 {[%clk 0:04:54.4]} 6. d3 {[%clk 0:04:49.7]} 6... e6 {[%clk
0:04:52.5]} 7. Bf4 {[%clk 0:04:47.2]} 7... Be7 {[%clk 0:04:50.8]} 8. O-O {[%clk
0:04:43]} 8... O-O {[%clk 0:04:49.6]} 9. Nd4 {[%clk 0:04:35.4]} 9... e5 {[%clk
0:04:46.9]} 10. Nf5 {[%clk 0:04:31.1]} 10... exf4 {[%clk 0:04:43]} 11. Qg4
{[%clk 0:04:28.4]} 11... Nxg4 {[%clk 0:04:41.5]} 12. f3 {[%clk 0:04:26.6]} 12...
Ne3 {[%clk 0:04:39.3]} 13. Rfe1 {[%clk 0:04:24.9]} 13... Nxf5 {[%clk 0:04:38.1]}
14. b3 {[%clk 0:04:24.7]} 14... Nd6 {[%clk 0:04:37.1]} 15. Nxd6 {[%clk
0:04:22.8]} 15... Bxd6 {[%clk 0:04:37]} 16. Re4 {[%clk 0:04:13.5]} 16... Ne5
{[%clk 0:04:35.3]} 17. Rae1 {[%clk 0:04:05.1]} 17... Nxc4 {[%clk 0:04:34.3]} 18.
dxc4 {[%clk 0:04:02.9]} 18... Bc5+ {[%clk 0:04:33.7]} 19. Kh1 {[%clk 0:04:00.7]}
19... Bf5 {[%clk 0:04:33.1]} 20. Re5 {[%clk 0:03:58.2]} 20... Bb4 {[%clk
0:04:29]} 21. R1e2 {[%clk 0:03:52.4]} 21... Qd1+ {[%clk 0:04:27.9]} 22. Re1
{[%clk 0:03:49.2]} 22... Bxe1 {[%clk 0:04:27.3]} 23. Rxe1 {[%clk 0:03:49.1]}
23... Qxe1# {[%clk 0:04:26.6]} 0-1

[Event "Live Chess"]
[Site "Chess.com"]
[Date "2024.06.02"]
[Round "-"]
[White "RockTroll"]
[Black "halfberg"]
[Result "1-0"]
[WhiteElo "2169"]
[BlackElo "1904"]
[TimeControl "300"]
[EndTime "4:02:33 PDT"]
[Termination "RockTroll won by resignation"]

1. e4 {[%clk 0:04:59.4]} 1... c5 {[%clk 0:04:56.9]} 2. c3 {[%clk 0:04:58.8]}
2... Nf6 {[%clk 0:04:52.5]} 3. e5 {[%clk 0:04:57.8]} 3... Nd5 {[%clk 0:04:51.5]}
4. Nf3 {[%clk 0:04:57.7]} 4... Nc6 {[%clk 0:04:49.1]} 5. Bc4 {[%clk 0:04:57.3]}
5... Nb6 {[%clk 0:04:47.2]} 6. Bb3 {[%clk 0:04:56.9]} 6... d5 {[%clk 0:04:46]}
7. exd6 {[%clk 0:04:55.6]} 7... e6 {[%clk 0:04:44.8]} 8. O-O {[%clk 0:04:53.8]}
8... Bxd6 {[%clk 0:04:43.6]} 9. d4 {[%clk 0:04:53.5]} 9... cxd4 {[%clk
0:04:38.7]} 10. cxd4 {[%clk 0:04:53.4]} 10... O-O {[%clk 0:04:35.4]} 11. Nc3
{[%clk 0:04:53]} 11... h6 {[%clk 0:04:22.6]} 12. a3 {[%clk 0:04:49.5]} 12... Ne7
{[%clk 0:04:15.7]} 13. Bc2 {[%clk 0:04:48.5]} 13... Nbd5 {[%clk 0:04:01.5]} 14.
Qd3 {[%clk 0:04:45.5]} 14... Nf6 {[%clk 0:03:45.8]} 15. Rd1 {[%clk 0:04:13.6]}
15... Bd7 {[%clk 0:03:29.5]} 16. Ne5 {[%clk 0:04:10.8]} 16... a6 {[%clk
0:03:14]} 17. Ng4 {[%clk 0:04:08.8]} 17... Ng6 {[%clk 0:03:05]} 18. Nxh6+ {[%clk
0:03:56]} 18... gxh6 {[%clk 0:03:01.9]} 19. Bxh6 {[%clk 0:03:55.9]} 19... Bc6
{[%clk 0:02:46.2]} 20. Qh3 {[%clk 0:02:38.6]} 20... Qc7 {[%clk 0:02:08.2]} 21.
Bxg6 {[%clk 0:02:31.4]} 21... fxg6 {[%clk 0:02:06.6]} 22. Qxe6+ {[%clk
0:02:30.6]} 22... Kh7 {[%clk 0:02:03.4]} 23. Bxf8 {[%clk 0:02:22.5]} 23... Rxf8
{[%clk 0:01:59.4]} 24. Rd3 {[%clk 0:02:17.5]} 24... Bxh2+ {[%clk 0:01:37.8]} 25.
Kf1 {[%clk 0:02:15.2]} 25... Bf4 {[%clk 0:01:33.2]} 26. Rh3+ {[%clk 0:02:13.3]}
26... Kg7 {[%clk 0:01:27.1]} 27. d5 {[%clk 0:01:52.7]} 27... Bd7 {[%clk
0:01:20.2]} 28. Qe7+ {[%clk 0:01:46.7]} 28... Rf7 {[%clk 0:01:19.2]} 29. d6
{[%clk 0:01:41.7]} 29... Qc4+ {[%clk 0:01:14.3]} 30. Qe2 {[%clk 0:01:38.6]}
30... Qxe2+ {[%clk 0:01:11.9]} 31. Nxe2 {[%clk 0:01:38.1]} 31... Bxh3 {[%clk
0:01:09.9]} 32. Nxf4 {[%clk 0:01:37.8]} 32... Bd7 {[%clk 0:01:06.1]} 33. Rc1
{[%clk 0:01:37.3]} 33... Bb5+ {[%clk 0:00:53.8]} 34. Kg1 {[%clk 0:01:35.5]}
34... Rd7 {[%clk 0:00:52.7]} 35. Rc7 {[%clk 0:01:31]} 35... Kf7 {[%clk
0:00:50.1]} 36. g3 {[%clk 0:01:19.4]} 36... Rxc7 {[%clk 0:00:47.5]} 37. dxc7
{[%clk 0:01:18.1]} 37... Bd7 {[%clk 0:00:47.1]} 38. Kf1 {[%clk 0:01:16.1]} 38...
Ne8 {[%clk 0:00:43.6]} 39. Nd5 {[%clk 0:01:12]} 39... Ke6 {[%clk 0:00:37.5]} 40.
Nf4+ {[%clk 0:01:10.6]} 40... Kf5 {[%clk 0:00:35.6]} 41. Nd5 {[%clk 0:01:09.5]}
41... Ke5 {[%clk 0:00:34]} 42. Ne7 {[%clk 0:01:06.7]} 42... Nxc7 {[%clk
0:00:28.6]} 43. Nxg6+ {[%clk 0:01:06]} 43... Kd4 {[%clk 0:00:27.4]} 44. f4
{[%clk 0:01:01]} 44... Kd3 {[%clk 0:00:26.1]} 45. Ne5+ {[%clk 0:00:59.7]} 45...
Kc2 {[%clk 0:00:24.4]} 46. Nxd7 {[%clk 0:00:59.4]} 46... Kxb2 {[%clk 0:00:24]}
47. g4 {[%clk 0:00:58.9]} 47... Kxa3 {[%clk 0:00:22.6]} 48. g5 {[%clk
0:00:58.8]} 48... b5 {[%clk 0:00:20.7]} 49. g6 {[%clk 0:00:57.9]} 49... Ne6
{[%clk 0:00:18.1]} 50. f5 {[%clk 0:00:56.6]} 50... Ng7 {[%clk 0:00:13.8]} 51. f6
{[%clk 0:00:55.8]} 51... b4 {[%clk 0:00:11]} 52. fxg7 {[%clk 0:00:54.9]} 52...
b3 {[%clk 0:00:10.6]} 53. g8=Q {[%clk 0:00:54.1]} 53... b2 {[%clk 0:00:10.5]}
54. Qf8+ {[%clk 0:00:52.5]} 54... Ka2 {[%clk 0:00:09.1]} 55. Qf7+ {[%clk
0:00:52]} 55... Ka1 {[%clk 0:00:07.1]} 56. Qf6 {[%clk 0:00:51.2]} 56... Ka2
{[%clk 0:00:06]} 57. Qxa6+ {[%clk 0:00:50.7]} 57... Kb1 {[%clk 0:00:04.7]} 58.
g7 {[%clk 0:00:50]} 58... Kc2 {[%clk 0:00:04.1]} 59. Qg6+ {[%clk 0:00:46.2]} 1-0

[Event "Live Chess"]
[Site "Chess.com"]
[Date "2024.06.02"]
[Round "-"]
[White "ACM42"]
[Black "NeilDruggan73"]
[Result "1-0"]
[WhiteElo "2176"]
[BlackElo "1691"]
[TimeControl "300"]
[EndTime "4:02:39 PDT"]
[Termination "ACM42 won by resignation"]

1. e4 {[%clk 0:04:58.5]} 1... d6 {[%clk 0:04:58.5]} 2. d4 {[%clk 0:04:56.6]}
2... Nf6 {[%clk 0:04:57.7]} 3. Nc3 {[%clk 0:04:55.4]} 3... g6 {[%clk 0:04:55.5]}
4. Nf3 {[%clk 0:04:54.1]} 4... Bg7 {[%clk 0:04:54.4]} 5. Bc4 {[%clk 0:04:50.8]}
5... Nxe4 {[%clk 0:04:49.9]} 6. Nxe4 {[%clk 0:04:46.1]} 6... d5 {[%clk
0:04:48.8]} 7. Bd3 {[%clk 0:04:45.4]} 7... dxe4 {[%clk 0:04:47.4]} 8. Bxe4
{[%clk 0:04:45.3]} 8... O-O {[%clk 0:04:45.5]} 9. c3 {[%clk 0:04:42.6]} 9... Nc6
{[%clk 0:04:33.2]} 10. O-O {[%clk 0:04:41]} 10... Bg4 {[%clk 0:04:30.6]} 11. h3
{[%clk 0:04:39.7]} 11... Bd7 {[%clk 0:04:26.8]} 12. Re1 {[%clk 0:04:37.8]} 12...
e6 {[%clk 0:04:24.7]} 13. Bg5 {[%clk 0:04:29.3]} 13... Qc8 {[%clk 0:04:13.9]}
14. Qb3 {[%clk 0:04:24.7]} 14... h6 {[%clk 0:04:10.3]} 15. Bf4 {[%clk
0:04:20.3]} 15... f5 {[%clk 0:04:04.8]} 16. Bd3 {[%clk 0:04:18.2]} 16... g5
{[%clk 0:04:01.3]} 17. d5 {[%clk 0:03:18.1]} 17... gxf4 {[%clk 0:03:22.2]} 18.
dxe6 {[%clk 0:03:11.9]} 18... Be8 {[%clk 0:03:19.2]} 19. e7+ {[%clk 0:03:10.1]}
19... Rf7 {[%clk 0:03:17.7]} 20. Bc4 {[%clk 0:03:00]} 20... Na5 {[%clk
0:03:11.4]} 21. Bxf7+ {[%clk 0:02:53.1]} 21... Bxf7 {[%clk 0:02:53.5]} 22. e8=Q+
{[%clk 0:02:51.3]} 22... Qxe8 {[%clk 0:02:48.6]} 23. Rxe8+ {[%clk 0:02:51.2]}
23... Rxe8 {[%clk 0:02:42.7]} 24. Qa4 {[%clk 0:02:49.8]} 24... b6 {[%clk
0:02:33.1]} 25. Qxf4 {[%clk 0:02:33.3]} 25... Re7 {[%clk 0:01:50.9]} 26. Re1
{[%clk 0:02:25.5]} 26... Nc4 {[%clk 0:01:45.5]} 27. Rxe7 {[%clk 0:02:22.6]} 1-0

[Event "Live Chess"]
[Site "Chess.com"]
[Date "2024.06.02"]
[Round "-"]
[White "MaksymYurii"]
[Black "Nathaniel250"]
[Result "0-1"]
[WhiteElo "999"]
[BlackElo "1524"]
[TimeControl "300"]
[EndTime "4:03:01 PDT"]
[Termination "Nathaniel250 won by checkmate"]

1. e4 {[%clk 0:04:56.1]} 1... c5 {[%clk 0:04:58.6]} 2. Nf3 {[%clk 0:04:55.1]}
2... Nc6 {[%clk 0:04:57.3]} 3. Bc4 {[%clk 0:04:54]} 3... d6 {[%clk 0:04:54.3]}
4. d4 {[%clk 0:04:48]} 4... cxd4 {[%clk 0:04:53.3]} 5. Nxd4 {[%clk 0:04:46.7]}
5... e6 {[%clk 0:04:48.5]} 6. Be3 {[%clk 0:04:38.1]} 6... Nf6 {[%clk 0:04:40.8]}
7. Nf3 {[%clk 0:04:36.2]} 7... Nxe4 {[%clk 0:04:37.6]} 8. Qe2 {[%clk 0:04:27.5]}
8... d5 {[%clk 0:04:32.5]} 9. Bd3 {[%clk 0:04:25.6]} 9... Nf6 {[%clk 0:04:28.4]}
10. Bg5 {[%clk 0:04:23.5]} 10... Be7 {[%clk 0:04:27.1]} 11. Bb5 {[%clk
0:04:16.6]} 11... Bd7 {[%clk 0:04:25.1]} 12. Bxf6 {[%clk 0:04:09.5]} 12... Bxf6
{[%clk 0:04:23.5]} 13. Nc3 {[%clk 0:04:08.9]} 13... Bxc3+ {[%clk 0:04:21.5]} 14.
bxc3 {[%clk 0:04:06.8]} 14... O-O {[%clk 0:04:20.6]} 15. O-O {[%clk 0:04:04.9]}
15... a6 {[%clk 0:04:16.6]} 16. Bxc6 {[%clk 0:04:02.7]} 16... Bxc6 {[%clk
0:04:16.5]} 17. Nd4 {[%clk 0:03:59.4]} 17... Rc8 {[%clk 0:04:07]} 18. a4 {[%clk
0:03:55.7]} 18... Bd7 {[%clk 0:04:01.7]} 19. Qd3 {[%clk 0:03:48.9]} 19... e5
{[%clk 0:03:51.5]} 20. Nf5 {[%clk 0:03:43.7]} 20... e4 {[%clk 0:03:45.6]} 21.
Qh3 {[%clk 0:03:29.9]} 21... Qf6 {[%clk 0:03:37.6]} 22. g4 {[%clk 0:03:15.1]}
22... Rxc3 {[%clk 0:03:24.9]} 23. f3 {[%clk 0:02:54]} 23... Bxf5 {[%clk
0:03:21.5]} 24. gxf5 {[%clk 0:02:51.9]} 24... exf3 {[%clk 0:03:17.1]} 25. Rxf3
{[%clk 0:02:50.2]} 25... Rxf3 {[%clk 0:03:13.3]} 26. Qxf3 {[%clk 0:02:48.3]}
26... Qxa1+ {[%clk 0:03:12.2]} 27. Kg2 {[%clk 0:02:46.3]} 27... Qxa4 {[%clk
0:03:08.1]} 28. f6 {[%clk 0:02:44.3]} 28... Qe4 {[%clk 0:03:05.8]} 29. fxg7
{[%clk 0:02:41.5]} 29... Qxf3+ {[%clk 0:03:04.6]} 30. Kxf3 {[%clk 0:02:40.5]}
30... Kxg7 {[%clk 0:03:04.1]} 31. h4 {[%clk 0:02:39.5]} 31... Re8 {[%clk
0:03:03.2]} 32. Kf4 {[%clk 0:02:38.8]} 32... a5 {[%clk 0:02:59.1]} 33. Kf5
{[%clk 0:02:37.8]} 33... a4 {[%clk 0:02:58.3]} 34. h5 {[%clk 0:02:37]} 34... a3
{[%clk 0:02:57.3]} 35. Kg5 {[%clk 0:02:36]} 35... a2 {[%clk 0:02:55.4]} 36. h6+
{[%clk 0:02:35.4]} 36... Kg8 {[%clk 0:02:54.2]} 37. Kf6 {[%clk 0:02:33.1]} 37...
a1=Q+ {[%clk 0:02:52.4]} 38. c3 {[%clk 0:02:31.8]} 38... Qxc3+ {[%clk 0:02:51]}
39. Kf5 {[%clk 0:02:26.6]} 39... Re5+ {[%clk 0:02:49.4]} 40. Kf6 {[%clk
0:02:25.4]} 40... Re6+ {[%clk 0:02:45.5]} 41. Kg5 {[%clk 0:02:24]} 41... Qe5+
{[%clk 0:02:43.9]} 42. Kg4 {[%clk 0:02:22.2]} 42... Rg6+ {[%clk 0:02:42.6]} 43.
Kh4 {[%clk 0:02:20.1]} 43... Qg5+ {[%clk 0:02:39.7]} 44. Kh3 {[%clk 0:02:17.1]}
44... Qg3# {[%clk 0:02:39.6]} 0-1